[Event "Final GP Rapid TOP 16 2019"]
[Site "Khanty-Mansijsk"]
[Date "2019.12.01"]
[Round "1.8"]
[White "Pridorozhni, Aleksei"]
[Black "Shaposhnikov, Evgeny"]
[Result "1-0"]
[ECO "B43"]
[WhiteElo "2602"]
[BlackElo "2568"]
[Annotator "ChessBase"]
[PlyCount "56"]
[EventDate "2019.12.01"]
[EventType "tourn"]
[EventCountry "RUS"]
[SourceTitle "playchess.com"]
[Source "ChessBase"]
[SourceQuality "1"]
[TimeControl "900+10"]

1. e4 {[%emt 0:00:00]} c5 {[%emt 0:00:00]} 2. Nf3 {[%emt 0:00:00]} e6 {[%emt 0:00:00]} 3. d4 {[%emt 0:00:09]} cxd4 {[%emt 0:00:00]} 4. Nxd4 {[%emt 0:00:01]} a6 {[%emt 0:00:01]} 5. Nc3 {[%emt 0:00:07]} Qc7 {[%emt 0:00:04]} 6. Bd3 {[%emt 0:00:09]} Nc6 {[%emt 0:00:20]} 7. Nxc6 {[%emt 0:00:54]} dxc6 {[%emt 0:00:04]} 8. a4 {[%emt 0:00:06]} e5 {[%emt 0:00:10]} 9. O-O {[%emt 0:00:10]} Nf6 {[%emt 0:00:03]} 10. a5 {[%emt 0:02:00]} Bb4 {[%emt 0:00:44]} 11. Bd2 {[%emt 0:00:04]} Bxa5 {[%emt 0:01:52]} 12. Nd5 {[%emt 0:00:06]} cxd5 {[%emt 0:00:15]} 13. Bxa5 {[%emt 0:00:02]} b6 {[%emt 0:00:11]} 14. Bb4 {[%emt 0:00:02]} Bb7 {[%emt 0:01:24]} 15. f3 {[%emt 0:01:31]} a5 {[%emt 0:00:41]} 16. Ba3 {[%emt 0:00:03]} O-O-O {[%emt 0:02:09]} 17. Qe2 {[%emt 0:00:14]} dxe4 {[%emt 0:01:25]} 18. fxe4 {[%emt 0:00:02]} Qc6 {[%emt 0:00:00]} 19. b4 {[%emt 0:00:48]} Nxe4 {[%emt 0:00:35]} 20. bxa5 {[%emt 0:01:37]} bxa5 {[%emt 0:01:59]} 21. Rxf7 {[%emt 0:01:03]} Nd6 {[%emt 0:01:57]} 22. Bxd6 {[%emt 0:01:17]} Qb6+ {[%emt 0:00:06]} 23. Kh1 {[%emt 0:00:18]} Rxd6 {[%emt 0:00:03]} 24. Qxe5 {[%emt 0:00:26]} Rhd8 {[%emt 0:02:09]} 25. h3 {[%emt 0:01:01]} Qc6 {[%emt 0:00:59]} 26. Rxg7 {[%emt 0:00:10]} Re8 {[%emt 0:01:00]} 27. Qxa5 {[%emt 0:02:18]} Re7 {[%emt 0:01:08]} 28. Bf5+ {[%emt 0:00:06]} Rdd7 {[%emt 0:00:10]} 1-0

[Event "Final GP Rapid TOP 16 2019"]
[Site "Khanty-Mansijsk"]
[Date "2019.12.01"]
[Round "2.1"]
[White "Ponkratov, Pavel"]
[Black "Shaposhnikov, Evgeny"]
[Result "1/2-1/2"]
[ECO "B41"]
[WhiteElo "2632"]
[BlackElo "2568"]
[Annotator "ChessBase"]
[PlyCount "91"]
[EventDate "2019.12.01"]
[EventType "tourn"]
[EventCountry "RUS"]
[SourceTitle "playchess.com"]
[Source "ChessBase"]
[SourceQuality "1"]
[TimeControl "900+10"]

1. e4 {[%emt 0:00:00]} c5 {[%emt 0:00:00]} 2. Nf3 {[%emt 0:00:00]} e6 {[%emt 0:00:02]} 3. d4 {[%emt 0:00:00]} cxd4 {[%emt 0:00:02]} 4. Nxd4 {[%emt 0:00:00]} a6 {[%emt 0:00:02]} 5. c4 {[%emt 0:00:02]} Nf6 {[%emt 0:00:06]} 6. Nc3 {[%emt 0:00:01]} Bb4 {[%emt 0:00:26]} 7. Qd3 {[%emt 0:00:04]} Qc7 {[%emt 0:00:12]} 8. Nc2 {[%emt 0:01:00]} Bd6 {[%emt 0:00:32]} 9. g3 {[%emt 0:01:12]} Nc6 {[%emt 0:00:34]} 10. Ne3 {[%emt 0:02:02]} Ne5 {[%emt 0:00:53]} 11. Qe2 {[%emt 0:00:14]} Bb4 {[%emt 0:00:09]} 12. Bg2 {[%emt 0:00:06]} d6 {[%emt 0:01:49]} 13. Bd2 {[%emt 0:00:18]} O-O {[%emt 0:00:31]} 14. O-O {[%emt 0:00:08]} Bc5 {[%emt 0:00:14]} 15. b3 {[%emt 0:01:11]} Bd7 {[%emt 0:00:19]} 16. Kh1 {[%emt 0:00:40]} Rfe8 {[%emt 0:00:32]} 17. f4 {[%emt 0:00:14]} Nc6 {[%emt 0:00:14]} 18. g4 {[%emt 0:00:11]} g6 {[%emt 0:02:20]} 19. f5 {[%emt 0:00:32]} Nd4 {[%emt 0:01:11]} 20. Qd3 {[%emt 0:00:15]} Rf8 {[%emt 0:01:25]} 21. g5 {[%emt 0:00:45]} Nh5 {[%emt 0:00:04]} 22. Ng4 {[%emt 0:00:05]} exf5 {[%emt 0:00:47]} 23. Nh6+ {[%emt 0:00:55]} Kg7 {[%emt 0:00:07]} 24. Be3 {[%emt 0:00:27]} Nc6 {[%emt 0:00:51]} 25. Nd5 {[%emt 0:00:30]} Qd8 {[%emt 0:00:15]} 26. Qc3+ {[%emt 0:02:35]} f6 {[%emt 0:00:07]} 27. exf5 {[%emt 0:00:02]} Bxe3 {[%emt 0:00:31]} 28. Nxe3 {[%emt 0:00:01]} Ne5 {[%emt 0:00:29]} 29. Rad1 {[%emt 0:00:07]} Qc7 {[%emt 0:02:22]} 30. Nd5 {[%emt 0:01:26]} Qc5 {[%emt 0:00:03]} 31. Qd2 {[%emt 0:00:48]} Bc6 {[%emt 0:00:29]} 32. fxg6 {[%emt 0:00:34]} hxg6 {[%emt 0:00:16]} 33. Rc1 {[%emt 0:02:46]} a5 {[%emt 0:00:14]} 34. gxf6+ {[%emt 0:00:57]} Nxf6 {[%emt 0:00:06]} 35. Rg1 {[%emt 0:00:08]} Nfg4 {[%emt 0:00:23]} 36. Nxg4 {[%emt 0:00:04]} Nxg4 {[%emt 0:00:02]} 37. h3 {[%emt 0:00:08]} Qf2 {[%emt 0:01:06]} 38. Qc3+ {[%emt 0:00:23]} Ne5 {[%emt 0:00:01]} 39. Be4 {[%emt 0:00:12]} Bxd5 {[%emt 0:00:13]} 40. Bxd5 {[%emt 0:00:10]} Rf6 {[%emt 0:00:14]} 41. Rc2 {[%emt 0:00:02]} Qf5 {[%emt 0:00:14]} 42. Kh2 {[%emt 0:00:19]} Rh8 {[%emt 0:00:03]} 43. Rcg2 {[%emt 0:00:08]} Qf4+ {[%emt 0:00:06]} 44. Rg3 {[%emt 0:00:05]} b6 {[%emt 0:00:03]} 45. Kh1 {[%emt 0:00:06]} Rh4 {[%emt 0:00:04]} 46. a3 {[%emt 0:00:11]} 1/2-1/2

[Event "Final GP Rapid TOP 16 2019"]
[Site "Khanty-Mansijsk"]
[Date "2019.12.01"]
[Round "2.2"]
[White "Kokarev, Dmitry"]
[Black "Pridorozhni, Aleksei"]
[Result "1/2-1/2"]
[ECO "C42"]
[WhiteElo "2606"]
[BlackElo "2602"]
[Annotator "ChessBase"]
[PlyCount "37"]
[EventDate "2019.12.01"]
[EventType "tourn"]
[EventCountry "RUS"]
[SourceTitle "playchess.com"]
[Source "ChessBase"]
[SourceQuality "1"]
[TimeControl "900+10"]

1. e4 {[%emt 0:00:00]} e5 {[%emt 0:00:00]} 2. Nf3 {[%emt 0:00:00]} Nf6 {[%emt 0:00:00]} 3. Nxe5 {[%emt 0:00:00]} d6 {[%emt 0:00:00]} 4. Nf3 {[%emt 0:00:01]} Nxe4 {[%emt 0:00:01]} 5. d4 {[%emt 0:00:02]} d5 {[%emt 0:00:16]} 6. Bd3 {[%emt 0:00:03]} Bf5 {[%emt 0:00:04]} 7. O-O {[%emt 0:00:08]} Be7 {[%emt 0:00:09]} 8. Ne5 {[%emt 0:00:04]} Nd7 {[%emt 0:02:04]} 9. Qf3 {[%emt 0:00:03]} Nxe5 {[%emt 0:00:11]} 10. dxe5 {[%emt 0:00:03]} Qd7 {[%emt 0:01:35]} 11. Nc3 {[%emt 0:00:05]} Bg4 {[%emt 0:00:24]} 12. e6 {[%emt 0:00:03]} Bxe6 {[%emt 0:00:37]} 13. Nxe4 {[%emt 0:00:02]} dxe4 {[%emt 0:00:02]} 14. Bxe4 {[%emt 0:00:03]} c6 {[%emt 0:00:14]} 15. Bf4 {[%emt 0:00:03]} Rd8 {[%emt 0:03:12]} 16. Be3 {[%emt 0:07:07]} Qc7 {[%emt 0:01:53]} 17. Qg3 {[%emt 0:01:45]} Qxg3 {[%emt 0:00:09]} 18. hxg3 {[%emt 0:00:02]} a6 {[%emt 0:00:15]} 19. Bb6 {[%emt 0:00:05]} 1/2-1/2

[Event "Final GP Rapid TOP 16 2019"]
[Site "Khanty-Mansijsk"]
[Date "2019.12.01"]
[Round "2.3"]
[White "Moiseenko, Vadim"]
[Black "Nesterov, Arseniy"]
[Result "1/2-1/2"]
[ECO "C50"]
[WhiteElo "2526"]
[BlackElo "2482"]
[Annotator "ChessBase"]
[PlyCount "111"]
[EventDate "2019.12.01"]
[EventType "tourn"]
[EventCountry "RUS"]
[SourceTitle "playchess.com"]
[Source "ChessBase"]
[SourceQuality "1"]
[TimeControl "900+10"]

1. e4 {[%emt 0:01:42]} e5 {[%emt 0:00:00]} 2. Nf3 {[%emt 0:00:02]} Nc6 {[%emt 0:00:00]} 3. Bc4 {[%emt 0:00:02]} Bc5 {[%emt 0:00:00]} 4. d3 {[%emt 0:00:02]} Nf6 {[%emt 0:00:10]} 5. a4 {[%emt 0:00:08]} a5 {[%emt 0:00:17]} 6. Bg5 {[%emt 0:00:11]} h6 {[%emt 0:00:06]} 7. Bh4 {[%emt 0:00:02]} d6 {[%emt 0:00:24]} 8. Nbd2 {[%emt 0:01:06]} Qe7 {[%emt 0:01:15]} 9. h3 {[%emt 0:01:51]} g5 {[%emt 0:01:07]} 10. Bg3 {[%emt 0:00:01]} Nh5 {[%emt 0:01:03]} 11. Nf1 {[%emt 0:00:32]} Nf4 {[%emt 0:00:29]} 12. Ne3 {[%emt 0:00:55]} Bxe3 {[%emt 0:01:13]} 13. fxe3 {[%emt 0:00:02]} Nxg2+ {[%emt 0:00:01]} 14. Kd2 {[%emt 0:00:01]} Nh4 {[%emt 0:04:17]} 15. Bxh4 {[%emt 0:00:31]} gxh4 {[%emt 0:00:02]} 16. Qe1 {[%emt 0:00:09]} Be6 {[%emt 0:01:21]} 17. Bxe6 {[%emt 0:01:59]} Qxe6 {[%emt 0:00:07]} 18. Qxh4 {[%emt 0:00:12]} Ne7 {[%emt 0:00:54]} 19. Qg4 {[%emt 0:02:35]} Rg8 {[%emt 0:00:26]} 20. Qxe6 {[%emt 0:00:05]} fxe6 {[%emt 0:00:01]} 21. Rhg1 {[%emt 0:00:11]} Kd7 {[%emt 0:00:08]} 22. Ke2 {[%emt 0:01:35]} Raf8 {[%emt 0:00:24]} 23. Nh4 {[%emt 0:00:22]} Ke8 {[%emt 0:00:29]} 24. c3 {[%emt 0:00:29]} b6 {[%emt 0:00:41]} 25. b3 {[%emt 0:01:24]} Kd7 {[%emt 0:00:57]} 26. Nf3 {[%emt 0:00:33]} Ng6 {[%emt 0:01:45]} 27. Rg4 {[%emt 0:00:33]} h5 {[%emt 0:00:16]} 28. Rgg1 {[%emt 0:00:10]} Rf6 {[%emt 0:00:37]} 29. Nh4 {[%emt 0:00:35]} Ke8 {[%emt 0:00:28]} 30. b4 {[%emt 0:00:45]} Kf7 {[%emt 0:00:26]} 31. Nf3 {[%emt 0:00:21]} Ke7 {[%emt 0:00:13]} 32. Nh4 {[%emt 0:00:28]} Kf7 {[%emt 0:00:04]} 33. Nxg6 {[%emt 0:00:11]} Rfxg6 {[%emt 0:00:08]} 34. Rxg6 {[%emt 0:00:15]} Rxg6 {[%emt 0:00:01]} 35. bxa5 {[%emt 0:00:10]} bxa5 {[%emt 0:00:01]} 36. Rb1 {[%emt 0:00:31]} Rg2+ {[%emt 0:00:09]} 37. Kf3 {[%emt 0:00:01]} Rc2 {[%emt 0:00:40]} 38. c4 {[%emt 0:00:20]} Rc3 {[%emt 0:00:14]} 39. Rb7 {[%emt 0:00:06]} Rxd3 {[%emt 0:00:09]} 40. Rxc7+ {[%emt 0:00:02]} Kf6 {[%emt 0:00:00]} 41. Ra7 {[%emt 0:00:25]} Rc3 {[%emt 0:00:07]} 42. Rxa5 {[%emt 0:00:03]} Rxc4 {[%emt 0:00:01]} 43. Ra6 {[%emt 0:00:06]} Ke7 {[%emt 0:00:13]} 44. Ra7+ {[%emt 0:00:05]} Kf6 {[%emt 0:00:01]} 45. Ra6 {[%emt 0:00:15]} Ke7 {[%emt 0:00:01]} 46. a5 {[%emt 0:00:06]} Ra4 {[%emt 0:00:02]} 47. Ra8 {[%emt 0:00:05]} d5 {[%emt 0:00:41]} 48. a6 {[%emt 0:00:04]} Kf7 {[%emt 0:00:28]} 49. a7 {[%emt 0:00:15]} Kg7 {[%emt 0:00:06]} 50. Re8 {[%emt 0:00:31]} dxe4+ {[%emt 0:00:11]} 51. Kg3 {[%emt 0:00:02]} Rxa7 {[%emt 0:00:01]} 52. Rxe6 {[%emt 0:00:01]} Ra3 {[%emt 0:00:25]} 53. Rxe5 {[%emt 0:00:08]} Rxe3+ {[%emt 0:00:02]} 54. Kf4 {[%emt 0:00:07]} Rxh3 {[%emt 0:00:15]} 55. Rxe4 {[%emt 0:00:06]} Kf6 {[%emt 0:00:09]} 56. Re3 {[%emt 0:00:04]} 1/2-1/2

[Event "Final GP Rapid TOP 16 2019"]
[Site "Khanty-Mansijsk"]
[Date "2019.12.01"]
[Round "2.4"]
[White "Sakaev, Konstantin"]
[Black "Voit, Daria"]
[Result "1-0"]
[ECO "E12"]
[WhiteElo "2596"]
[BlackElo "2336"]
[Annotator "ChessBase"]
[PlyCount "61"]
[EventDate "2019.12.01"]
[EventType "tourn"]
[EventCountry "RUS"]
[SourceTitle "playchess.com"]
[Source "ChessBase"]
[SourceQuality "1"]
[TimeControl "900+10"]

1. d4 {[%emt 0:00:00]} Nf6 {[%emt 0:00:00]} 2. c4 {[%emt 0:00:00]} e6 {[%emt 0:00:00]} 3. Nf3 {[%emt 0:00:00]} b6 {[%emt 0:00:00]} 4. a3 {[%emt 0:00:18]} c5 {[%emt 0:00:00]} 5. d5 {[%emt 0:00:02]} Ba6 {[%emt 0:00:00]} 6. Qc2 {[%emt 0:00:01]} exd5 {[%emt 0:00:02]} 7. cxd5 {[%emt 0:00:01]} g6 {[%emt 0:00:02]} 8. Nc3 {[%emt 0:00:06]} Bg7 {[%emt 0:00:02]} 9. h4 {[%emt 0:00:24]} d6 {[%emt 0:00:44]} 10. h5 {[%emt 0:01:26]} Nxh5 {[%emt 0:00:28]} 11. g4 {[%emt 0:00:11]} Nf6 {[%emt 0:00:13]} 12. Bh6 {[%emt 0:00:02]} Bxh6 {[%emt 0:01:22]} 13. Rxh6 {[%emt 0:00:01]} Nbd7 {[%emt 0:00:25]} 14. g5 {[%emt 0:02:27]} Nh5 {[%emt 0:02:29]} 15. Bh3 {[%emt 0:05:04]} Qe7 {[%emt 0:04:56]} 16. Qa4 {[%emt 0:00:01]} Bb7 {[%emt 0:00:17]} 17. O-O-O {[%emt 0:00:03]} a6 {[%emt 0:00:27]} 18. Bg4 {[%emt 0:02:52]} b5 {[%emt 0:00:02]} 19. Qe4 {[%emt 0:00:34]} Ng7 {[%emt 0:01:33]} 20. Rdh1 {[%emt 0:01:31]} Nf8 {[%emt 0:00:14]} 21. Qf4 {[%emt 0:00:20]} Kd8 {[%emt 0:00:41]} 22. Ne4 {[%emt 0:01:37]} Ne8 {[%emt 0:00:05]} 23. Nf6 {[%emt 0:00:24]} Kc7 {[%emt 0:01:22]} 24. e4 {[%emt 0:00:12]} Nxf6 {[%emt 0:02:00]} 25. gxf6 {[%emt 0:00:02]} Qe8 {[%emt 0:00:01]} 26. Ng5 {[%emt 0:00:12]} Bc8 {[%emt 0:00:12]} 27. Be2 {[%emt 0:00:33]} a5 {[%emt 0:01:13]} 28. Kb1 {[%emt 0:00:13]} b4 {[%emt 0:00:03]} 29. Rc1 {[%emt 0:00:05]} Ba6 {[%emt 0:00:13]} 30. Rxc5+ {[%emt 0:00:14]} Kb7 {[%emt 0:00:15]} 31. Qxd6 {[%emt 0:00:36]} 1-0

[Event "Final GP Rapid TOP 16 2019"]
[Site "Khanty-Mansijsk"]
[Date "2019.12.01"]
[Round "2.5"]
[White "Golubov, Saveliy"]
[Black "Maltsevskaya, Aleksandra"]
[Result "1-0"]
[ECO "A47"]
[WhiteElo "2469"]
[BlackElo "2318"]
[Annotator "ChessBase"]
[PlyCount "67"]
[EventDate "2019.12.01"]
[EventType "tourn"]
[EventCountry "RUS"]
[SourceTitle "playchess.com"]
[Source "ChessBase"]
[SourceQuality "1"]
[TimeControl "900+10"]

1. d4 {[%emt 0:00:00]} Nf6 {[%emt 0:00:00]} 2. Nf3 {[%emt 0:00:00]} e6 {[%emt 0:00:02]} 3. Bf4 {[%emt 0:00:00]} b6 {[%emt 0:00:18]} 4. e3 {[%emt 0:00:22]} Bb7 {[%emt 0:00:02]} 5. Bd3 {[%emt 0:00:27]} Be7 {[%emt 0:00:19]} 6. h3 {[%emt 0:00:03]} O-O {[%emt 0:00:39]} 7. Nbd2 {[%emt 0:00:15]} d6 {[%emt 0:00:55]} 8. O-O {[%emt 0:00:14]} c5 {[%emt 0:00:12]} 9. c3 {[%emt 0:00:48]} Nbd7 {[%emt 0:01:27]} 10. Bh2 {[%emt 0:02:54]} d5 {[%emt 0:01:12]} 11. a4 {[%emt 0:01:37]} Ne4 {[%emt 0:04:53]} 12. Qb1 {[%emt 0:03:00]} f5 {[%emt 0:01:51]} 13. Rc1 {[%emt 0:00:02]} cxd4 {[%emt 0:02:18]} 14. exd4 {[%emt 0:00:56]} Bh4 {[%emt 0:00:53]} 15. Rf1 {[%emt 0:00:38]} Bf6 {[%emt 0:01:08]} 16. Qe1 {[%emt 0:01:10]} Qe8 {[%emt 0:00:16]} 17. a5 {[%emt 0:00:19]} g5 {[%emt 0:00:28]} 18. Bb5 {[%emt 0:01:28]} Qe7 {[%emt 0:00:27]} 19. a6 {[%emt 0:00:18]} Bc8 {[%emt 0:00:08]} 20. Bc6 {[%emt 0:00:01]} Rb8 {[%emt 0:00:22]} 21. Bxb8 {[%emt 0:01:43]} Nxb8 {[%emt 0:00:02]} 22. Bb5 {[%emt 0:00:02]} Qg7 {[%emt 0:00:35]} 23. Nxe4 {[%emt 0:00:23]} fxe4 {[%emt 0:00:09]} 24. Nh2 {[%emt 0:00:13]} e5 {[%emt 0:00:11]} 25. f3 {[%emt 0:01:25]} exd4 {[%emt 0:00:01]} 26. fxe4 {[%emt 0:00:06]} dxc3 {[%emt 0:00:12]} 27. bxc3 {[%emt 0:00:01]} Bxc3 {[%emt 0:00:17]} 28. Rxf8+ {[%emt 0:00:02]} Kxf8 {[%emt 0:00:02]} 29. Qf1+ {[%emt 0:00:11]} Kg8 {[%emt 0:00:11]} 30. Rd1 {[%emt 0:00:09]} Bd7 {[%emt 0:00:18]} 31. Rxd5 {[%emt 0:00:25]} h6 {[%emt 0:00:11]} 32. Ng4 {[%emt 0:00:31]} Kh7 {[%emt 0:00:06]} 33. Bxd7 {[%emt 0:00:02]} Nxd7 {[%emt 0:00:01]} 34. Qf5+ {[%emt 0:00:01]} 1-0

[Event "Final GP Rapid TOP 16 2019"]
[Site "Khanty-Mansijsk"]
[Date "2019.12.01"]
[Round "2.6"]
[White "Bocharov, Dmitry"]
[Black "Murzin, Volodar"]
[Result "1-0"]
[ECO "A11"]
[WhiteElo "2524"]
[BlackElo "2442"]
[Annotator "ChessBase"]
[PlyCount "79"]
[EventDate "2019.12.01"]
[EventType "tourn"]
[EventCountry "RUS"]
[SourceTitle "playchess.com"]
[Source "ChessBase"]
[SourceQuality "1"]
[TimeControl "900+10"]

1. c4 {[%emt 0:00:00]} c6 {[%emt 0:00:00]} 2. Nf3 {[%emt 0:00:00]} Nf6 {[%emt 0:00:02]} 3. g3 {[%emt 0:00:07]} d5 {[%emt 0:00:50]} 4. Bg2 {[%emt 0:00:03]} Bg4 {[%emt 0:01:08]} 5. Ne5 {[%emt 0:00:12]} Be6 {[%emt 0:00:33]} 6. cxd5 {[%emt 0:00:33]} Bxd5 {[%emt 0:00:21]} 7. Nf3 {[%emt 0:00:04]} c5 {[%emt 0:01:10]} 8. Nc3 {[%emt 0:00:05]} Bc6 {[%emt 0:00:06]} 9. O-O {[%emt 0:00:21]} Nbd7 {[%emt 0:00:25]} 10. d3 {[%emt 0:00:19]} e6 {[%emt 0:00:24]} 11. e4 {[%emt 0:00:08]} Be7 {[%emt 0:01:35]} 12. Qe2 {[%emt 0:00:04]} O-O {[%emt 0:00:10]} 13. d4 {[%emt 0:00:28]} cxd4 {[%emt 0:03:32]} 14. Nxd4 {[%emt 0:00:03]} e5 {[%emt 0:00:01]} 15. Nf5 {[%emt 0:00:35]} Bc5 {[%emt 0:01:13]} 16. Bg5 {[%emt 0:06:12]} h6 {[%emt 0:02:53]} 17. Bd2 {[%emt 0:00:09]} Kh7 {[%emt 0:00:18]} 18. Kh1 {[%emt 0:00:13]} Bd4 {[%emt 0:00:31]} 19. Rfd1 {[%emt 0:04:12]} Qb6 {[%emt 0:00:51]} 20. Be1 {[%emt 0:00:15]} Rad8 {[%emt 0:00:26]} 21. Nxd4 {[%emt 0:00:53]} exd4 {[%emt 0:00:04]} 22. Nd5 {[%emt 0:00:08]} Bxd5 {[%emt 0:00:15]} 23. exd5 {[%emt 0:00:02]} Rfe8 {[%emt 0:00:03]} 24. Qd3+ {[%emt 0:00:17]} Kg8 {[%emt 0:00:01]} 25. Rd2 {[%emt 0:00:11]} Re7 {[%emt 0:01:12]} 26. b3 {[%emt 0:01:58]} Rde8 {[%emt 0:00:05]} 27. Rdd1 {[%emt 0:00:01]} Re5 {[%emt 0:00:30]} 28. Qc4 {[%emt 0:00:19]} Re2 {[%emt 0:00:32]} 29. Kg1 {[%emt 0:00:30]} d3 {[%emt 0:00:11]} 30. Qxd3 {[%emt 0:00:16]} Ng4 {[%emt 0:00:03]} 31. Qf3 {[%emt 0:00:13]} Ngf6 {[%emt 0:00:15]} 32. Bc3 {[%emt 0:00:17]} Rc2 {[%emt 0:00:08]} 33. Bd4 {[%emt 0:00:19]} Qa5 {[%emt 0:00:04]} 34. Bf1 {[%emt 0:00:10]} a6 {[%emt 0:00:20]} 35. Qd3 {[%emt 0:00:22]} Rcc8 {[%emt 0:00:11]} 36. Bg2 {[%emt 0:00:09]} Ne5 {[%emt 0:00:06]} 37. Qf5 {[%emt 0:00:06]} Ned7 {[%emt 0:00:07]} 38. h3 {[%emt 0:00:15]} Qb4 {[%emt 0:00:08]} 39. d6 {[%emt 0:00:34]} Re2 {[%emt 0:00:12]} 40. Bxf6 {[%emt 0:00:11]} 1-0

[Event "Final GP Rapid TOP 16 2019"]
[Site "Khanty-Mansijsk"]
[Date "2019.12.01"]
[Round "2.7"]
[White "Morozevich, Alexander"]
[Black "Tsydypov, Zhamsaran"]
[Result "1/2-1/2"]
[ECO "A11"]
[WhiteElo "2659"]
[BlackElo "2553"]
[Annotator "ChessBase"]
[PlyCount "85"]
[EventDate "2019.12.01"]
[EventType "tourn"]
[EventCountry "RUS"]
[SourceTitle "playchess.com"]
[Source "ChessBase"]
[SourceQuality "1"]
[TimeControl "900+10"]

1. Nf3 {[%emt 0:00:00]} d5 {[%emt 0:00:08]} 2. g3 {[%emt 0:00:13]} Nf6 {[%emt 0:00:12]} 3. Bg2 {[%emt 0:00:01]} g6 {[%emt 0:00:02]} 4. c4 {[%emt 0:00:27]} c6 {[%emt 0:00:11]} 5. Qa4 {[%emt 0:00:09]} Nbd7 {[%emt 0:00:57]} 6. cxd5 {[%emt 0:00:07]} cxd5 {[%emt 0:00:11]} 7. O-O {[%emt 0:00:28]} Bg7 {[%emt 0:00:02]} 8. d3 {[%emt 0:00:21]} O-O {[%emt 0:00:06]} 9. Nc3 {[%emt 0:00:04]} e5 {[%emt 0:00:12]} 10. Qh4 {[%emt 0:02:04]} d4 {[%emt 0:01:40]} 11. Nb5 {[%emt 0:00:02]} Qb6 {[%emt 0:03:03]} 12. a4 {[%emt 0:01:17]} Nh5 {[%emt 0:01:32]} 13. Qe7 {[%emt 0:02:55]} Bf6 {[%emt 0:02:49]} 14. Qd6 {[%emt 0:01:39]} Nc5 {[%emt 0:00:33]} 15. Bh6 {[%emt 0:03:50]} Rd8 {[%emt 0:01:24]} 16. Qxb6 {[%emt 0:00:02]} axb6 {[%emt 0:00:02]} 17. b4 {[%emt 0:00:01]} Na6 {[%emt 0:03:16]} 18. Rfb1 {[%emt 0:01:23]} Ng7 {[%emt 0:00:13]} 19. h4 {[%emt 0:00:25]} Ne6 {[%emt 0:00:31]} 20. Nd2 {[%emt 0:00:25]} Be7 {[%emt 0:00:44]} 21. Nc4 {[%emt 0:00:01]} Nxb4 {[%emt 0:00:21]} 22. Nxb6 {[%emt 0:00:25]} Rb8 {[%emt 0:00:02]} 23. Bd2 {[%emt 0:00:33]} Nc6 {[%emt 0:00:07]} 24. a5 {[%emt 0:01:03]} Nc5 {[%emt 0:00:07]} 25. Nxc8 {[%emt 0:00:26]} Rbxc8 {[%emt 0:00:10]} 26. Na3 {[%emt 0:00:17]} f5 {[%emt 0:00:10]} 27. Nc4 {[%emt 0:00:02]} e4 {[%emt 0:00:04]} 28. Bf4 {[%emt 0:00:31]} Ra8 {[%emt 0:00:10]} 29. Rb5 {[%emt 0:00:14]} Na7 {[%emt 0:00:24]} 30. Rb2 {[%emt 0:00:20]} Nc8 {[%emt 0:00:18]} 31. Rd1 {[%emt 0:00:11]} Ra6 {[%emt 0:00:06]} 32. Be5 {[%emt 0:00:12]} Bf6 {[%emt 0:00:10]} 33. Bxf6 {[%emt 0:00:02]} Rxf6 34. Rb5 {[%emt 0:00:10]} Rc6 35. Ne5 {[%emt 0:00:00]} Rc7 {[%emt 0:00:21]} 36. Rc1 {[%emt 0:00:06]} Rd5 {[%emt 0:00:02]} 37. Nc4 {[%emt 0:00:14]} Na7 {[%emt 0:00:12]} 38. Nb6 {[%emt 0:00:24]} Re5 {[%emt 0:00:11]} 39. Rbb1 {[%emt 0:00:01]} Rce7 {[%emt 0:00:23]} 40. Nc4 {[%emt 0:00:13]} R5e6 {[%emt 0:00:03]} 41. dxe4 {[%emt 0:00:17]} Nxe4 {[%emt 0:00:19]} 42. e3 {[%emt 0:00:13]} Nc6 {[%emt 0:00:06]} 43. Bxe4 {[%emt 0:00:10]} 1/2-1/2

[Event "Final GP Rapid TOP 16 2019"]
[Site "Khanty-Mansijsk"]
[Date "2019.12.01"]
[Round "2.8"]
[White "Potapov, Pavel"]
[Black "Shimanov, Aleksandr"]
[Result "0-1"]
[ECO "B12"]
[WhiteElo "2482"]
[BlackElo "2587"]
[Annotator "ChessBase"]
[PlyCount "90"]
[EventDate "2019.12.01"]
[EventType "tourn"]
[EventCountry "RUS"]
[SourceTitle "playchess.com"]
[Source "ChessBase"]
[SourceQuality "1"]
[TimeControl "900+10"]

1. e4 {[%emt 0:00:00]} c6 {[%emt 0:00:00]} 2. d4 {[%emt 0:00:00]} d5 {[%emt 0:00:00]} 3. e5 {[%emt 0:00:00]} c5 {[%emt 0:00:00]} 4. dxc5 {[%emt 0:00:00]} e6 {[%emt 0:00:02]} 5. a3 {[%emt 0:00:01]} Bxc5 {[%emt 0:00:03]} 6. b4 {[%emt 0:00:35]} Bb6 {[%emt 0:00:02]} 7. Qg4 {[%emt 0:00:22]} Ne7 {[%emt 0:00:07]} 8. Bb2 {[%emt 0:01:14]} O-O {[%emt 0:03:32]} 9. Bd3 {[%emt 0:00:07]} Nbc6 {[%emt 0:00:15]} 10. Nf3 {[%emt 0:00:09]} Ng6 {[%emt 0:00:15]} 11. O-O {[%emt 0:00:27]} f5 {[%emt 0:05:02]} 12. Qg3 {[%emt 0:00:43]} Bd7 {[%emt 0:00:39]} 13. Nbd2 {[%emt 0:00:13]} Rc8 {[%emt 0:00:26]} 14. c4 {[%emt 0:02:31]} Nce7 {[%emt 0:00:01]} 15. c5 {[%emt 0:00:53]} Bc7 {[%emt 0:00:02]} 16. Rac1 {[%emt 0:00:58]} Qe8 {[%emt 0:00:15]} 17. Rfe1 {[%emt 0:00:32]} b6 {[%emt 0:00:39]} 18. Nb3 {[%emt 0:00:25]} bxc5 {[%emt 0:00:46]} 19. Nxc5 {[%emt 0:00:14]} Bb6 {[%emt 0:00:02]} 20. Nd4 {[%emt 0:02:46]} Bxc5 {[%emt 0:00:17]} 21. bxc5 {[%emt 0:00:01]} Rb8 {[%emt 0:00:56]} 22. Bc3 {[%emt 0:00:35]} Nc6 {[%emt 0:00:15]} 23. Nxc6 {[%emt 0:02:14]} Bxc6 {[%emt 0:00:01]} 24. Rb1 {[%emt 0:00:02]} Qd7 {[%emt 0:00:22]} 25. Bd4 {[%emt 0:00:09]} Ne7 {[%emt 0:00:13]} 26. f4 {[%emt 0:00:31]} Bb5 {[%emt 0:00:34]} 27. Bc2 {[%emt 0:00:06]} Nc6 {[%emt 0:00:08]} 28. Qc3 {[%emt 0:00:09]} Rfc8 {[%emt 0:00:11]} 29. Rb2 {[%emt 0:00:46]} Rb7 {[%emt 0:01:16]} 30. Reb1 {[%emt 0:00:06]} Rcb8 {[%emt 0:00:01]} 31. a4 {[%emt 0:00:43]} Bc4 {[%emt 0:00:11]} 32. h3 {[%emt 0:00:15]} g6 {[%emt 0:01:26]} 33. Kf2 {[%emt 0:01:02]} Qe7 {[%emt 0:00:12]} 34. Rxb7 {[%emt 0:00:23]} Rxb7 {[%emt 0:00:01]} 35. Rxb7 {[%emt 0:00:02]} Qxb7 {[%emt 0:00:01]} 36. h4 {[%emt 0:00:13]} a5 {[%emt 0:00:27]} 37. g3 {[%emt 0:00:17]} Qb4 {[%emt 0:00:09]} 38. Ke3 {[%emt 0:00:49]} Kf7 {[%emt 0:00:10]} 39. Qxb4 {[%emt 0:00:30]} axb4 {[%emt 0:00:02]} 40. Bb2 {[%emt 0:00:05]} h5 {[%emt 0:00:24]} 41. Bc1 {[%emt 0:00:11]} Ke7 {[%emt 0:00:05]} 42. Bd2 {[%emt 0:00:03]} Kd8 {[%emt 0:00:29]} 43. a5 {[%emt 0:00:03]} b3 {[%emt 0:01:10]} 44. Bd1 {[%emt 0:00:09]} b2 {[%emt 0:00:11]} 45. Bc2 {[%emt 0:00:02]} Ba2 {[%emt 0:00:01]} 0-1